fUSD/lending_fUSD_20241224
["ID","MTS","AMOUNT","RATE_DAILY","PERIOD"]
[346532884,1735049442970,-1341915.44785195,0.00013,2]
[346532885,1735049442987,-664.717,0.00013,2]
[346532886,1735049443003,-15613.48279987,0.00013,2]
[346532887,1735049443015,-20252.04194209,0.00013,2]
[346532888,1735049443056,-1207.38541534,0.00013,2]
[346532889,1735049443067,-251.579918,0.00013,2]
[346532890,1735049443080,-3909.55827254,0.00013,2]
[346532893,1735049443302,-1641.73728067,0.00013,2]
[346532903,1735049445836,-1071.699137,0.00011399,2]
[346532904,1735049445861,-29.300863,0.00011399,2]
[346532905,1735049445872,-534.37140711,0.00012,2]
[346532906,1735049445887,-50000.11973999,0.00012,2]
[346532907,1735049445899,-1163.22901918,0.00012,2]
[346532908,1735049445915,-729.12371714,0.00012,2]
[346532909,1735049445946,-740.40033588,0.00012,2]
[346532910,1735049445957,-1281.46614566,0.00012,2]
[346532911,1735049445993,-254.25,0.00012,2]
[346532912,1735049446065,-3950.78810474,0.00012,2]
[346532913,1735049446077,-46348.16954493,0.00012,2]
[346532914,1735049446088,-556.78398471,0.00012,2]
[346532915,1735049446100,-4919.07120143,0.00012,2]
[346532916,1735049446111,-77864.21427871,0.00012,2]
[346532917,1735049446155,-153.0,0.00010663,2]
[346532918,1735049446165,-2793.36745992,0.00012,2]
[346532919,1735049446177,-6802.31049626,0.00012,2]
[346532925,1735049470054,8468.5369,0.00019,30]
[346532931,1735050162678,160.75,9.128e-05,2]
[346533126,1735050376560,159.82,8.977e-05,2]
[346533761,1735050558812,152.81,0.00016658,30]
[346533765,1735050576001,3017.65432441,0.000188,30]
[346533798,1735050632868,-1662.98,9.607e-05,2]
[346533800,1735050632878,-203.3150481,9.978e-05,2]
[346533803,1735050632888,-998.75867291,9.978e-05,2]
[346533805,1735050632899,-5968.9404677,0.0001,2]
[346533807,1735050632909,-743.87515383,0.0001,2]
[346533809,1735050632918,-998.7586729,0.0001,2]
[346533811,1735050632928,-324.95,0.00010137,2]
[346533813,1735050632938,-203.3150481,0.00010389,2]
[346533815,1735050632948,-153.0,0.00010458,2]
[346533817,1735050632958,-42895.31216587,0.000109,2]
[346533819,1735050632970,-203.3150481,0.000109,2]
[346533821,1735050632980,-500.0,0.00010973,2]
[346533846,1735050633235,-500.0,0.00010999,2]
[346533848,1735050633252,-588.86158693,0.00010999,2]
[346533850,1735050633263,-500.0,0.00010999,2]
[346533852,1735050633274,-500.0,0.00010999,2]
[346533854,1735050633285,-500.0,0.00010999,2]
[346533857,1735050633296,-500.0,0.00010999,2]
[346533859,1735050633308,-500.0,0.00010999,2]
[346533860,1735050633319,-449.24144614,0.00010999,2]
[346533862,1735050633334,-500.0,0.00010999,2]
[346533865,1735050633345,-286.75587248,0.00010999,2]
[346533866,1735050633355,-500.0,0.00010999,2]
[346533869,1735050633365,-500.0,0.00010999,2]
[346533871,1735050633378,-500.0,0.00010999,2]
[346533873,1735050633389,-500.0,0.00010999,2]
[346533875,1735050633399,-324.32435904,0.00010999,2]
[346533877,1735050633410,-2332.03800379,0.00011,2]
[346533879,1735050633425,-135225.00007521,0.00011,2]
[346533881,1735050633438,-28533.23333684,0.00011,2]
[346533883,1735050633451,-395.72304042,0.00011,2]
[346533885,1735050633468,-1926.24,0.00011,2]
[346533889,1735050633490,-34995.93381571,0.00011,2]
[346533891,1735050633503,-14861.97340681,0.00011,2]
[346533898,1735050633569,-439.8200001,0.00011,2]
[346533900,1735050633583,-1559.3669999,0.00011,2]
[346533903,1735050633596,-561.33428526,0.00011,2]
[346533908,1735050633636,-1448.82,0.00011,2]
[346533910,1735050633649,-600.0,0.00011,2]
[346533913,1735050633674,-400.67,0.00011,2]
[346533915,1735050633687,-970.0,0.00011,2]
[346533917,1735050633699,-3320.7,0.00011,2]
[346533920,1735050633713,-4615.6,0.00011,2]
[346533922,1735050633730,-2301.0,0.00011,2]
[346533925,1735050633756,-1521394.01381634,0.00011,2]
[346533927,1735050633766,-10121.63226189,0.00011,2]
[346533929,1735050633778,-309842.93736485,0.00011,2]
[346533962,1735050638041,-9287.38505771,0.00011,2]
[346533963,1735050638053,-8923554.46189964,0.00011,2]
[346533964,1735050638167,-1905.0248454,0.00011,2]
[346533965,1735050638179,-977.9243463,0.00011,2]
[346533975,1735050639993,-482.04,0.00011,2]
[346533976,1735050640206,-743.87515383,0.00011,2]
[346533977,1735050640219,-58146.027136,0.00011,2]
[346533978,1735050640417,-1856.24148,0.00011,2]
[346534140,1735050643485,-870.3,0.00011,2]
[346534142,1735050643496,-18017.202,0.00011,2]
[346534178,1735050643827,-683.665,0.00011,2]
[346534180,1735050643838,-1594.61578653,0.00011,2]
[346534335,1735050645905,-516.95296226,0.00011,2]
[346534340,1735050645944,-57079.56259347,0.00011,2]
[346534353,1735050646076,-2465.23679469,0.00011,2]
[346534355,1735050646088,-1195.79333399,0.00011,2]
[346534357,1735050646100,-1576.03298212,0.00011,2]
[346534359,1735050646112,-2422.75,0.00011,2]
[346534361,1735050646124,-487.035,0.00011,2]
[346534363,1735050646136,-3249.95425722,0.00011,2]
[346534366,1735050646148,-9708.2778,0.00011,2]
[346534368,1735050646161,-7797.81488646,0.00011,2]
[346534374,1735050646215,-1098.0,0.00011,2]
[346534379,1735050646256,-266.34815154,0.00011,2]
[346534381,1735050646268,-256.00451223,0.00011,2]
[346534585,1735050666424,200000.0,7e-05,2]
[346534587,1735050703367,250000.0,9e-05,3]
[346534588,1735050728711,200000.0,9e-05,4]
[346534589,1735050775619,173026.59727027,9e-05,5]
[346534590,1735050911527,2000.0,0.00019,30]
[346534592,1735051259224,-2754.11,0.000199,31]
[346534593,1735051259252,-2754.11,0.000199,31]
[346534594,1735051259280,-2754.11,0.000199,31]
[346534595,1735051259306,-2754.11,0.000199,31]
[346534596,1735051259331,-2754.11,0.000199,31]
[346534597,1735051259357,-2754.11,0.000199,31]
[346534598,1735051259381,-2754.11,0.000199,31]
[346534599,1735051259406,-2754.11,0.000199,31]
[346534600,1735051259432,-2754.11,0.000199,31]
[346534601,1735051259456,-2754.11,0.000199,31]
[346534602,1735051259481,-2754.11,0.000199,31]
[346534603,1735051259506,-2754.11,0.000199,31]
[346534604,1735051259535,-2754.11,0.000199,31]
[346534605,1735051259560,-2754.11,0.000199,31]
[346534606,1735051259585,-2754.11,0.000199,31]
[346534607,1735051259611,-2754.11,0.000199,31]
[346534608,1735051259638,-1426.64944346,0.0002,60]
[346534609,1735051259661,-1507.06421194,0.0002,30]
[346534610,1735051259693,-224.82,0.0002,30]
[346534611,1735051286273,1000.0,0.0002,45]
[346534612,1735051298357,1000.0,0.00019999,40]
[346534613,1735051325180,775.7063446,0.0002,30]
[346534614,1735051397771,1579.83,8.219e-05,2]
[346534649,1735051602435,166.42,7.917e-05,2]
[346534950,1735051708419,152.81,0.00016658,30]
[346534951,1735051726757,1793.826342,9.569e-05,2]
[346534952,1735051785139,250.0,9.507e-05,2]
[346534968,1735051832057,-250.0,9.617e-05,2]
[346534969,1735051832067,-8463.25254072,9.619e-05,2]
[346534970,1735051832076,-17989.24745929,9.619e-05,2]
[346534972,1735051832158,-1090.52064337,9.619e-05,2]
[346534973,1735051832169,-4820.23189734,9.619e-05,2]
[346534974,1735051832179,-3555.65,9.788e-05,2]
[346534975,1735051832188,-344.35,9.805e-05,2]
[346534976,1735051832197,-1500.0,9.901e-05,2]
[346534977,1735051832206,-1000.0,9.907e-05,2]
[346534978,1735051832218,-2600.0,0.0001,3]
[346534979,1735051832228,-1400.0,0.0001,3]
[346534980,1735051832238,-179.02,0.00010017,2]
[346534981,1735051832248,-858.24,0.00010028,2]
[346534982,1735051832258,-351.66,0.00010078,2]
[346534983,1735051832268,-150.0,0.00010082,2]
[346534984,1735051832277,-5200.0,0.000101,3]
[346534985,1735051832287,-2800.0,0.000101,3]
[346534986,1735051832296,-169.36,0.00010137,2]
[346534987,1735051832305,-151.33,0.00010167,2]
[346534988,1735051832315,-7800.0,0.000102,3]
[346534989,1735051832324,-4200.0,0.000102,3]
[346534990,1735051832334,-2022.827,0.000103,2]
[346534991,1735051832343,-10400.0,0.000103,3]
[346534992,1735051832352,-5600.0,0.000103,3]
[346534993,1735051832361,-13000.0,0.000104,3]
[346534994,1735051832370,-7000.0,0.000104,3]
[346534995,1735051832379,-1579.83,0.00010465,2]
[346534996,1735051832388,-6548.7913,0.00010466,2]
[346534997,1735051832398,-2600.0,0.000105,3]
[346534998,1735051832407,-1400.0,0.000105,3]
[346534999,1735051832416,-91652.0,0.00010566,2]
[346535000,1735051832425,-2600.0,0.000106,3]
[346535001,1735051832435,-1400.0,0.000106,3]
[346535002,1735051832444,-2600.0,0.000107,3]
[346535003,1735051832453,-1400.0,0.000107,3]
[346535004,1735051832464,-946.47,0.000108,2]
[346535005,1735051832473,-2600.0,0.000108,3]
[346535006,1735051832482,-1400.0,0.000108,3]
[346535007,1735051832492,-3000.0,0.0001089,2]
[346535008,1735051832502,-584.25356851,0.00010898,2]
[346535009,1735051832512,-500.0,0.00010898,2]
[346535010,1735051832521,-500.0,0.00010898,2]
[346535011,1735051832530,-500.0,0.00010898,2]
[346535012,1735051832540,-500.0,0.00010898,2]
[346535013,1735051832549,-500.0,0.00010898,2]
[346535014,1735051832559,-11904.20435733,0.00010899,2]
[346535015,1735051832570,-1770.999999,0.00010899,2]
[346535016,1735051832644,-163.84353305,0.00010898,2]
[346535017,1735051832654,-4143.57502505,0.00010899,2]
[346535018,1735051832689,-500.0,0.00010898,2]
[346535019,1735051832698,-461.67907138,0.00010899,2]
[346535020,1735051832723,-1239.35,0.00010899,2]
[346535021,1735051832734,-1916.437789,0.00010899,2]
[346535022,1735051832755,-4494.0925053,0.00010899,2]
[346535023,1735051832966,-34161.0,0.00010899,2]
[346535024,1735051832978,-24568.19,0.00010899,2]
[346535025,1735051832992,-32202.36444488,0.00010899,2]
[346535026,1735051833004,-9509.36840806,0.00010899,2]
[346535027,1735051833013,-774.2702,0.000109,2]
[346535028,1735051833023,-1321.7928,0.000109,2]
[346535029,1735051833032,-5000.0,0.000109,2]
[346535030,1735051833042,-986.7451,0.000109,2]
[346535031,1735051833051,-2839.5834,0.000109,2]
[346535032,1735051833062,-164.00310757,0.000109,2]
[346535033,1735051833072,-1932.29331112,0.000109,2]
[346535034,1735051833083,-185.16739718,0.000109,2]
[346535035,1735051833093,-2637.0,0.000109,3]
[346535036,1735051833102,-554.58315407,0.000109,2]
[346535037,1735051833112,-313.62559682,0.000109,2]
[346535038,1735051833123,-1400.0,0.000109,3]
[346535039,1735051833133,-500.0,0.00010973,2]
[346535040,1735051833143,-500.0,0.00010973,2]
[346535041,1735051833153,-500.0,0.00010973,2]
[346535042,1735051833162,-400.0,0.00010986,2]
[346535043,1735051833172,-295.45672114,0.0001099,2]
[346535044,1735051833182,-295.45672114,0.0001099,2]
[346535045,1735051833192,-295.45672114,0.0001099,2]
[346535046,1735051833202,-164.00310756,0.00010994,2]
[346535047,1735051833212,-7500.0,0.00010999,2]
[346535048,1735051833223,-7500.0,0.00010999,2]
[346535049,1735051833233,-7500.0,0.00010999,2]
[346535050,1735051833243,-7500.0,0.00010999,2]
[346535051,1735051833253,-7500.0,0.00010999,2]
[346535052,1735051833262,-7511.08048562,0.00010999,2]
[346535053,1735051833271,-318119.77359169,0.00011,2]
[346535054,1735051833283,-14966.76529061,0.00011,2]
[346535055,1735051833310,-9726.2958061,0.00011,2]
[346535056,1735051833328,-960.96,0.00011,2]
[346535057,1735051833340,-571.2076922,0.00011,2]
[346535058,1735051833351,-2308.34147264,0.00011,2]
[346535059,1735051833392,-327.41088722,0.00011,2]
[346535352,1735051838168,-75249.66649339,0.00011,2]
[346535353,1735051838180,-1269.99759,0.00011,2]
[346535354,1735051838191,-2388.6000052,0.00011,2]
[346535355,1735051838202,-8567.41998478,0.00011,2]
[346535356,1735051838216,-581.82166456,0.00011,2]
[346535357,1735051838227,-9709.20000001,0.00011,2]
[346535358,1735051838250,-827.72746618,0.00011,2]
[346535359,1735051838261,-480.58,0.00011,2]
[346535360,1735051838458,-180079.37072697,0.00011,2]
[346535361,1735051838495,-3472.85,0.00011,2]
[346535363,1735051838506,-34840.691785,0.00011,2]
[346535364,1735051838520,-279.00154736,0.00011,2]
[346535365,1735051838532,-4863.1,0.00011,2]
[346535366,1735051838543,-3024.01035593,0.00011,2]
[346535367,1735051838569,-9266.66307812,0.00011,2]
[346535368,1735051838580,-4568.59789089,0.00011,2]
[346535369,1735051838591,-381.29752691,0.00011,2]
[346535370,1735051838603,-977.82259004,0.00011,2]
[346535371,1735051838614,-724.000035,0.00011,2]
[346535372,1735051838627,-1183.499996,0.00011,2]
[346535373,1735051838638,-3163.74223281,0.00011,2]
[346535382,1735051840473,-1024.70535099,0.00011,2]
[346535383,1735051840484,-94075.87964079,0.00011,2]
[346535384,1735051840496,-12369.19361549,0.00011,2]
[346535385,1735051840507,-3907.79298001,0.00011,2]
[346535386,1735051840520,-1512.7,0.00011,2]
[346535388,1735051840537,-13201.90983459,0.00011,2]
[346535392,1735051840570,-3622.39033404,0.00011,2]
[346535394,1735051840581,-5663.00549854,0.00011,2]
[346535395,1735051840673,-281.48008961,0.00011,2]
[346535396,1735051840684,-992.79,0.00011,2]
[346535397,1735051840695,-937.5,0.00011,2]
[346535398,1735051840706,-2102.61013397,0.00011,2]
[346535399,1735051840719,-4848.9,0.00011,2]
[346535432,1735051843107,-484.45698,0.00010898,2]
[346535433,1735051843118,-15.54302,0.00010898,2]
[346535434,1735051843128,-2520.7924831,0.00011,2]
[346535435,1735051843154,-11585.49986,0.00011,2]
[346535436,1735051843165,-449.89721201,0.00011,2]
[346535437,1735051843292,-1941.08,0.00011,2]
[346535438,1735051843304,-707.3898016,0.00011,2]
[346535439,1735051843330,-546.073235,0.00011,2]
[346535440,1735051843341,-10105.0,0.00011,2]
[346535441,1735051843353,-1648.35,0.00011,2]
[346535442,1735051843381,-190150.64220867,0.00011,2]
[346535463,1735051846084,-2405.625736,0.00011,2]
[346535464,1735051846097,-1154.07252,0.00011,2]
[346535465,1735051846262,-349282.46807965,0.00011,2]
[346535466,1735051846272,-8097.30580952,0.00011,2]
[346535467,1735051846282,-680922.06090883,0.00011,2]
[346535468,1735051846294,-9663.2972,0.00011,2]
[346535469,1735051846439,-3237.86473869,0.00011,2]
[346535470,1735051846450,-399.78581851,0.00011,2]
[346535471,1735051846462,-393.87334999,0.00011,2]
[346535472,1735051846473,-3805.83049162,0.00011,2]
[346535473,1735051846485,-4383.54227938,0.00011,2]
[346535474,1735051846497,-932.79,0.00011,2]
[346535475,1735051846510,-6769.25669112,0.00011,2]
[346535476,1735051846536,-5787.35628123,0.00011,2]
[346535477,1735051846548,-395.31149671,0.00011,2]
[346535478,1735051846559,-772.09808,0.00011,2]
[346535490,1735052091433,152.40472,0.000171,30]
[346535491,1735052391445,3337.17001941,0.00016,15]
[346535492,1735052439478,3337.17001,0.00016,15]
[346535493,1735052453788,1529.47,8.219e-05,2]
[346535494,1735052472523,3337.17002,0.00016,15]
[346535495,1735052657455,152.81,0.00016658,30]
[346535497,1735052996613,425.82,0.00019,30]
[346535498,1735053000856,162.38,7.975e-05,2]
[346535504,1735053032314,-1635.20433221,9.957e-05,2]
[346535505,1735053032327,-125.71566779,9.957e-05,2]
[346535506,1735053032337,-250.0,9.992e-05,2]
[346535508,1735053032347,-74.28433221,0.00010055,2]
[346535509,1735053032387,-5700.88213685,0.00010055,2]
[346535510,1735053032399,-1292.5814419,0.00010055,2]
[346535511,1735053032450,-9211.23208904,0.00010055,2]
[346535512,1735053032461,-250.0,0.0001009,2]
[346535513,1735053032471,-1000.0,0.00010137,2]
[346535514,1735053032482,-306.7,0.00010137,2]
[346535515,1735053032492,-308.7,0.00010137,2]
[346535516,1735053032502,-855.99,0.00010233,2]
[346535517,1735053032512,-19261.0,0.00010356,2]
[346535518,1735053032521,-164.93,0.00010467,2]
[346535519,1735053032532,-250.0,0.00010477,2]
[346535520,1735053032541,-1529.47,0.00010483,2]
[346535521,1735053032551,-175.83,0.00010483,2]
[346535522,1735053032560,-168.41,0.00010504,2]
[346535523,1735053032570,-167.35,0.00010781,2]
[346535524,1735053032579,-2615.44,0.00010781,2]
[346535525,1735053032589,-166.448,0.00010781,2]
[346535526,1735053032598,-14128.1891,0.00010799,2]
[346535527,1735053032608,-1521.9345,0.000109,2]
[346535528,1735053032618,-446.08,0.000109,2]
[346535529,1735053032628,-1991.97898579,0.000109,2]
[346535530,1735053032642,-508.02101421,0.000109,2]
[346535531,1735053032653,-2500.0,0.000109,2]
[346535532,1735053032664,-172.18196127,0.000109,2]
[346535533,1735053032673,-437.17,0.000109,2]
[346535534,1735053032684,-1450.07,0.000109,2]
[346535535,1735053032696,-437.17,0.000109,2]
[346535536,1735053032705,-946.19002836,0.000109,2]
[346535537,1735053032714,-437.17,0.000109,2]
[346535538,1735053032724,-376.4950917,0.000109,2]
[346535540,1735053032734,-217.69,0.000109,2]
[346535541,1735053032743,-786.10344762,0.000109,2]
[346535542,1735053032753,-260.43046931,0.000109,2]
[346535543,1735053032763,-168.41,0.00010937,2]
[346535544,1735053032773,-1655.03,0.00010959,2]
[346535546,1735053032783,-499.02248788,0.00010973,2]
[346535548,1735053032793,-500.0,0.00010973,2]
[346535550,1735053032803,-159.90027356,0.00010973,2]
[346535552,1735053032814,-400.0,0.00010986,2]
[346535554,1735053032823,-218.27004618,0.00010999,2]
[346535556,1735053032832,-22524.87715854,0.00010999,2]
[346535558,1735053032845,-337.862729,0.00010999,2]
[346535565,1735053033056,-372.05445868,0.00010999,2]
[346535566,1735053033134,-1952.0921292,0.00010999,2]
[346535567,1735053033158,-348.89010204,0.00010999,2]
[346535568,1735053033187,-1204.56856532,0.00010999,2]
[346535569,1735053033213,-604.32310367,0.00010999,2]
[346535570,1735053033233,-692.77500015,0.00010999,2]
[346535571,1735053033254,-959.18225948,0.00010999,2]
[346535572,1735053033313,-437.7779378,0.00010999,2]
[346535575,1735053038496,-465.40271212,0.00010999,2]
[346535576,1735053038508,-6151.74601697,0.00010999,2]
[346535577,1735053038520,-9750.000001,0.00010999,2]
[346535578,1735053038537,-3887.4999975,0.00010999,2]
[346535579,1735053038549,-28057.1505,0.00010999,2]
[346535580,1735053038561,-273.02906358,0.00010999,2]
[346535581,1735053038623,-115124.47972242,0.00010999,2]
[346535582,1735053038633,-306.72078791,0.00010999,2]
[346535583,1735053038642,-500.0,0.00010999,2]
[346535584,1735053038652,-504.25916683,0.00010999,2]
[346535586,1735053038661,-500.0,0.00010999,2]
[346535588,1735053038671,-308.97095076,0.00010999,2]
[346535590,1735053038680,-531.98046405,0.00010999,2]
[346535592,1735053038689,-500.0,0.00010999,2]
[346535594,1735053038700,-500.0,0.00010999,2]
[346535596,1735053038709,-500.0,0.00010999,2]
[346535598,1735053038718,-6477.84464761,0.00011,2]
[346535600,1735053038727,-88805.64856179,0.00011,2]
[346535603,1735053038739,-3381.22978117,0.00011,2]
[346535778,1735053040370,-1418.37767461,0.00011,2]
[346535801,1735053040603,-246821.878308,0.00011,2]
[346535803,1735053040615,-97418.36913792,0.00011,2]
[346535805,1735053040629,-838.68893181,0.00011,2]
[346535811,1735053040680,-18105.73147517,0.00011,2]
[346535813,1735053040692,-9215.32059837,0.00011,2]
[346535816,1735053040705,-971.73,0.00011,2]
[346535818,1735053040718,-2981.94530141,0.00011,2]
[346535822,1735053040754,-349.59858613,0.00011,2]
[346535824,1735053040766,-898.07793177,0.00011,2]
[346535827,1735053040778,-681.947,0.00011,2]
[346535829,1735053040789,-1063.56685,0.00011,2]
[346535831,1735053040806,-7204.59203402,0.00011,2]
[346535834,1735053040818,-478.7595078,0.00011,2]
[346536038,1735053043321,-321.36511144,0.00011,2]
[346536040,1735053043333,-1136.42593314,0.00011,2]
[346536048,1735053043387,-63845.94839815,0.00011,2]
[346536050,1735053043399,-565.6266562,0.00011,2]
[346536068,1735053043571,-357.18,0.00011,2]
[346536071,1735053043582,-429.73984,0.00011,2]
[346536073,1735053043594,-288.26999,0.00011,2]
[346536079,1735053043643,-390.82764036,0.00011,2]
[346536331,1735053046854,-292.38252455,0.00011,2]
[346536333,1735053046865,-1715.46033963,0.00011,2]
[346536335,1735053046876,-1870.49302,0.00011,2]
[346536338,1735053046888,-1945.5,0.00011,2]
[346536343,1735053046926,-30659.16852999,0.00011,2]
[346536345,1735053046937,-535.16059044,0.00011,2]
[346536347,1735053046948,-9762.39806878,0.00011,2]
[346536580,1735053212235,18959406.82370537,0.0002,120]
[346536581,1735053212269,8000000.0,0.0002,120]
[346536584,1735053478369,1430.01,8.266e-05,2]
[346536585,1735053662760,152.81,0.00016658,30]
[346536586,1735053883308,-250.0,0.00010158,2]
[346536587,1735053883333,-2788.8,0.00010162,2]
[346536588,1735053883357,-158.75,0.00010209,2]
[346536589,1735053883382,-1000.0,0.00010242,2]
[346536590,1735053883408,-343.03,0.00010243,2]
[346536591,1735053883434,-153.0,0.00010448,2]
[346536592,1735053883459,-552.42,0.0001045,2]
[346536631,1735054232225,-171.51,9.733e-05,2]
[346536632,1735054232235,-150.74294153,9.8e-05,2]
[346536633,1735054232245,-165.13,0.00010137,2]
[346536634,1735054232255,-684.79,0.00010147,2]
[346536635,1735054232265,-151.97,0.00010214,2]
[346536636,1735054232276,-153.0,0.00010436,2]
[346536637,1735054232286,-153.0,0.00010436,2]
[346536638,1735054232295,-153.0,0.00010436,2]
[346536639,1735054232305,-153.0,0.00010436,2]
[346536640,1735054232315,-24.33927647,0.00010437,2]
[346536641,1735054232342,-128.66072353,0.00010437,2]
[346536642,1735054232351,-153.0,0.00010437,2]
[346536643,1735054232361,-153.0,0.00010437,2]
[346536644,1735054232371,-153.0,0.00010437,2]
[346536645,1735054232380,-153.0,0.00010437,2]
[346536646,1735054232390,-153.0,0.00010446,2]
[346536647,1735054232400,-153.0,0.00010448,2]
[346536648,1735054232409,-153.0,0.00010448,2]
[346536649,1735054232419,-216.94,0.0001045,2]
[346536650,1735054232433,-166.25,0.00010456,2]
[346536651,1735054232443,-1430.01,0.0001053,2]
[346536652,1735054232453,-920.08,0.00010565,2]
[346536653,1735054232463,-179.02,0.00010585,2]
[346536654,1735054232476,-872.56,0.000106,2]
[346536655,1735054232485,-300.0,0.000106,2]
[346536656,1735054232496,-1911.53,0.0001062,2]
[346536657,1735054232506,-2152.30238328,0.0001067,2]
[346536658,1735054232516,-500.0,0.00010687,2]
[346536659,1735054232526,-729.97,0.000107,2]
[346536660,1735054232535,-300.0,0.000107,2]
[346536661,1735054232546,-2152.30238328,0.000108,2]
[346536662,1735054232556,-3626.78460867,0.000108,2]
[346536663,1735054232566,-500.0,0.00010899,2]
[346536664,1735054232576,-1000.0,0.00010899,2]
[346536665,1735054232585,-1360.98990124,0.00010899,2]
[346536666,1735054232599,-402.52041782,0.00010899,2]
[346536667,1735054232611,-9430.78358094,0.00010899,2]
[346536668,1735054232620,-474.975,0.00010899,2]
[346536669,1735054232630,-4323.8396,0.000109,2]
[346536670,1735054232639,-168.8545,0.000109,2]
[346536671,1735054232649,-1653.0029,0.000109,2]
[346536672,1735054232659,-770.84,0.000109,2]
[346536673,1735054232669,-291.24,0.000109,2]
[346536674,1735054232680,-163.07955667,0.00010959,2]
[346536675,1735054232735,-9357.80044333,0.00010959,2]
[346536676,1735054232744,-2753.21953711,0.0001098,2]
[346536677,1735054232870,-126851.11765689,0.0001098,2]
[346536678,1735054232880,-400.0,0.00010986,2]
[346536679,1735054232889,-152.06,0.00010994,2]
[346536680,1735054232898,-152.75,0.00010994,2]
[346536681,1735054232908,-150.0,0.00010994,2]
[346536682,1735054232917,-300.0,0.00010994,2]
[346536683,1735054232926,-150.0,0.00010994,2]
[346536684,1735054232936,-218.27004618,0.00010999,2]
[346536685,1735054232946,-1418.67,0.00011,2]
[346536686,1735054232955,-16114.73171886,0.00011,2]
[346536687,1735054232964,-1500.0,0.00011,2]
[346536688,1735054232974,-1500.0,0.00011,2]
[346536689,1735054232983,-1500.0,0.00011,2]
[346536690,1735054232993,-1500.0,0.00011,2]
[346536691,1735054233002,-1500.0,0.00011,2]
[346536692,1735054233011,-1500.0,0.00011,2]
[346536693,1735054233020,-1500.0,0.00011,2]
[346536694,1735054233030,-1500.0,0.00011,2]
[346536695,1735054233039,-1500.0,0.00011,2]
[346536696,1735054233049,-1500.0,0.00011,2]
[346536697,1735054233059,-443.39,0.00011,2]
[346536698,1735054233068,-3000.0,0.00011,2]
[346536699,1735054233078,-3708.7936026,0.00011024,2]
[346536700,1735054233088,-166.25,0.00011031,2]
[346536701,1735054233100,-8738.0,0.00011073,2]
[346536702,1735054233110,-4500.6617,0.00011085,2]
[346536703,1735054233120,-437.17,0.00011096,2]
[346536704,1735054233129,-1575.83,0.00011096,2]
[346536705,1735054233139,-437.17,0.00011096,2]
[346536706,1735054233149,-437.17,0.00011096,2]
[346536707,1735054233158,-3626.78460862,0.0001122,2]
[346536708,1735054233168,-386.38,0.00011254,2]
[346536709,1735054233180,-386.38,0.00011257,2]
[346536710,1735054233190,-386.38,0.0001126,2]
[346536711,1735054233199,-386.38,0.00011263,2]
[346536712,1735054233209,-386.38,0.00011266,2]
[346536713,1735054233218,-386.38,0.00011269,2]
[346536714,1735054233228,-386.38,0.00011272,2]
[346536715,1735054233237,-386.38,0.00011275,2]
[346536716,1735054233407,-386.38,0.00011278,2]
[346536717,1735054233459,-386.38,0.00011281,2]
[346536718,1735054233469,-386.38,0.00011284,2]
[346536719,1735054233479,-386.38,0.00011287,2]
[346536720,1735054233493,-386.38,0.0001129,2]
[346536721,1735054233504,-386.38,0.00011293,2]
[346536722,1735054233514,-386.38,0.00011296,2]
[346536723,1735054233524,-386.38,0.00011299,2]